Cogmind - Beta 16 @@@ ROGUE MODE // 2025.11.02 @ 20:01:55 Player: Moodge Result: Destroyed by H-61 Shepherd with Heavy Assault Cannon Performance ------------- Evolutions (2) 1000 Regions Visited (3) 600 Robots Destroyed (47) 235 Value Destroyed (1326) 1326 Prototype IDs (2) 40 Alien Tech Used (0) 0 Bonus (0) 0 TOTAL SCORE: 3201 Bonus ------- None Cogmind --------- Core Integrity 0/550 Matter 300/300 Energy 100/100 System Corruption 0% Temperature Cool (0) Movement Core (700) Ox13 Location -8/Materials Parts ------- > --- POWER (2) -------- (None) > --- PROPULSION (4) --- (None) > --- UTILITY (3) ------ High-capacity Storage Unit Terrain Scan Processor Improved Terrain Scan Processor > --- WEAPON (2) ------- (None) > --- INVENTORY (20) --- Light Ion Engine Improved Ion Engine Improved Ion Engine Improved Terrain Scan Processor Improved Terrain Scan Processor Improved Terrain Scan Processor Improved Datajack Peak State ------------ > --- POWER ------------ Deuterium Engine Light Nuclear Core > --- PROPULSION ------- Aluminum Leg Aluminum Leg Aluminum Leg Carbon-fiber Leg > --- UTILITY ---------- High-capacity Storage Unit Terrain Scan Processor Improved Terrain Scan Processor > --- WEAPON ----------- Precision Beam Rifle Improved Datajack > --- INVENTORY -------- Light Ion Engine Improved Ion Engine Improved Ion Engine Improved Terrain Scan Processor Improved Terrain Scan Processor Improved Terrain Scan Processor [Rating: 26] Favorites ----------- Power Reinforced Ion Engine Engine Reinforced Ion Engine Power Core Nuclear Core Propulsion Aluminum Leg Leg Aluminum Leg Utility High-capacity Storage Unit Device ECM Suite Storage High-capacity Storage Unit Processor Terrain Scan Processor Protection Backup Plating I Weapon Improved Assault Rifle Energy Gun Precision Beam Rifle Ballistic Gun Improved Assault Rifle Special Melee Weapon Improved Datajack Build | -11 -10 -9 -8 ------- Run | Yrd Mat Mat Mat Slots Evolved 4 | . . 2 2 Power 1 | . . . 1 Propulsion 2 | . . 2 . Utility 1 | . . . 1 Weapon . | . . . . Parts Attached 40 | . 2 16 22 Power 8 | . . 3 5 Engine 4 | . . 3 1 Core 4 | . . . 4 Reactor . | . . . . Propulsion 18 | . . 9 9 Treads . | . . . . Leg 18 | . . 9 9 Wheel . | . . . . Hover . | . . . . Flight . | . . . . Utility 5 | . 2 1 2 Device 1 | . 1 . . Storage 2 | . 1 1 . Processor 2 | . . . 2 Hackware . | . . . . Protection . | . . . . Artifact . | . . . . Weapon 9 | . . 3 6 Energy Gun 2 | . . 1 1 Energy Cannon . | . . . . Ballistic Gun 6 | . . 2 4 Ballistic Cannon . | . . . . Launcher . | . . . . Special Weapon . | . . . . Impact Weapon . | . . . . Slashing Weapon . | . . . . Piercing Weapon . | . . . . Special Melee Weapon 1 | . . . 1 Unidentified Prototypes 2 | . . . 2 Parts Lost 38 | . . 10 28 Power 6 | . . 2 4 Propulsion 20 | . . 5 15 Utility 2 | . . 1 1 Weapon 10 | . . 2 8 Highest Loss Streak 9 | . . 6 9 To Critical Strikes . | . . . . Average Backups 11 | 6 6 7 14 Power 3 | 1 1 1 5 Propulsion 1 | 4 4 2 1 Utility 3 | . . 1 5 Weapon 2 | 1 1 1 2 Tool/Special . | . . . . Unused Backups 17 | . . 3 14 Power 6 | . . . 6 Propulsion 2 | . . 2 . Utility 7 | . . . 7 Weapon 1 | . . 1 . Tool/Special 1 | . . . 1 Average Slot Usage (%) 78 | . 87 74 78 Engine 8 | . 14 8 8 Core 5 | . . . 8 Leg 28 | . 28 33 26 Device 1 | . 2 4 . Storage 9 | . 14 11 9 Processor 4 | . . . 6 Protection 2 | . . . 3 Energy Gun 5 | . 14 5 3 Ballistic Gun 10 | . 14 11 9 Special Melee Weapon 1 | . . . 2 Peak Build Rating 26 | 6 7 14 26 Average Rating 15 | 6 6 8 20 On Entrance 8 | 6 6 7 14 Avg Prop Armor Cover (%) . | . . . . Naked Turns . | . . . . Heaviest Build 64 | 12 29 56 64 Greatest Support 45 | 20 20 40 45 Greatest Overweight (x) 18 | . 1 16 18 Average Overweight (x) 1 | . . 1 1 Largest Inventory Capacity 20 | 8 15 20 20 Average Capacity 19 | 8 8 19 20 Most Carried 20 | 6 8 18 20 Average Carried 11 | 6 7 7 14 Final Capacity 20 | 8 15 20 20 Final Carried 18 | 6 8 18 7 Class Distribution -------------------- 53% | Mutant 46% | Scavenger-Mutant Dominant Class ---------------- Mutant | -10/Materials Scavenger-Mutant | -9/Materials Mutant | -8/Materials Resources | -11 -10 -9 -8 ----------- Run | Yrd Mat Mat Mat Matter Collected 1214 | 200 10 406 598 Remotely . | . . . . Salvage Created 1710 | . 40 715 955 Parts 102 | . 6 40 56 Haulers Intercepted . | . . . . Recyclers Shooed 5 | . . . 5 Parts Field Recycled . | . . . . Retrieved Matter . | . . . . Parts Self-Destructed . | . . . . Prevented . | . . . . Parts Restored . | . . . . Kills | -11 -10 -9 -8 ------- Run | Yrd Mat Mat Mat Combat Hostiles Destroyed 41 | . 3 17 21 Guns 41 | . 3 17 21 Classes Destroyed 8 | . 1 5 2 Worker 3 | . . 1 2 Recycler 2 | . . 1 1 Watcher 1 | . . . 1 Swarmer 14 | . 3 4 7 Grunt 20 | . . 11 9 Brawler 1 | . . 1 . Sentry 5 | . . 1 4 Hunter 1 | . . . 1 Best Kill Streak 4 | . 2 4 4 Combat Bots Only 4 | . 2 4 4 Max Kills in Single Turn 2 | . 1 2 1 Gunslinging . | . . . . Exploded . | . . . . Melee . | . . . . Uniques/NPCs Destroyed . | . . . . Combat | -11 -10 -9 -8 -------- Run | Yrd Mat Mat Mat Hostile Shots Fired 426 | . 18 138 270 Missed 98 | . 6 35 57 Hits 328 | . 12 103 213 Melee 1 | . . 1 . Projectile 327 | . 12 102 213 Critical Strikes 11 | . . 3 8 Damage Taken 4387 | . 95 1261 3031 Core 837 | . 32 209 596 Absorbed by Shields . | . . . . Core Remaining (%) 78 | 100 87 47 . Volleys Fired 214 | . 10 87 117 Largest 2 | . 2 2 2 Hottest 61 | . 60 60 61 Shots Fired 326 | . 20 131 175 Gun 326 | . 20 131 175 Cannon . | . . . . Launcher . | . . . . Special . | . . . . Kinetic 234 | . 10 91 133 Thermal 92 | . 10 40 42 Explosive . | . . . . Electromagnetic . | . . . . Robot Hit Streak 15 | . 7 11 15 Robot Miss Streak 4 | . 2 4 3 Penetration Max . | . . . . Secondary Targets 3 | . . 2 1 Max Gunslinging Chain 1 | . . 1 1 Shots Hit Robots 236 | . 14 92 130 Core Hits 88 | . 5 35 48 Critical Kills . | . . . . Critical Parts Destroyed . | . . . . Critical Strikes 3 | . . . 3 Burn 3 | . . . 3 Melee Attacks 3 | . . . 3 Impact . | . . . . Slashing . | . . . . Piercing . | . . . . Sneak Attacks 2 | . . . 2 Combat Hostiles . | . . . . Follow-up Attacks . | . . . . Damage Inflicted 3136 | . 120 1093 1923 Guns 3112 | . 120 1093 1899 Cannons . | . . . . Explosions . | . . . . Melee . | . . . . Ramming 24 | . . . 24 Kinetic 2198 | . 48 731 1419 Thermal 914 | . 72 362 480 Explosive . | . . . . Electromagnetic . | . . . . Impact . | . . . . Slashing . | . . . . Piercing . | . . . . Highest Corruption . | . . . . Average Corruption . | . . . . Corruption Purged . | . . . . Corruption Blocked . | . . . . Overload Shots . | . . . . Overflow Damage . | . . . . Projectiles . | . . . . Explosions . | . . . . Melee . | . . . . Knockbacks . | . . . . Impact . | . . . . Kinetic . | . . . . Secondary . | . . . . Self-Inflicted Damage . | . . . . Shots . | . . . . Rammed . | . . . . Targets Rammed 4 | . . . 4 Kicked 4 | . . . 4 Crushed . | . . . . Highest Temperature 300 | . 40 70 300 Average Temperature 58 | . 23 16 76 Received Heat Transfer 1692 | . . 693 999 Siege Activations . | . . . . Martial Activations . | . . . . Shielding Activations . | . . . . Robots Disrupted . | . . . . Combat Hostiles . | . . . . Robots Corrupted . | . . . . Combat Hostiles . | . . . . Parts Fried . | . . . . Impact Corruptions . | . . . . Robots Melted . | . . . . Combat Hostiles . | . . . . Parts Melted 2 | . . . 2 Heat Transferred 2258 | . 175 825 1258 Parts Sabotaged . | . . . . Parts Stolen . | . . . . Parts Stripped . | . . . . Power Chain Reactions . | . . . . Alert | -11 -10 -9 -8 ------- Run | Yrd Mat Mat Mat Maximum Alert Level . | . . . . Low Security (%) 100 | 100 100 100 100 Level 1 . | . . . . Level 2 . | . . . . Level 3 . | . . . . Level 4 . | . . . . Level 5 . | . . . . High Security . | . . . . Max Security . | . . . . Peak Influence 147 | . 65 147 106 Initial 39 | . . 14 39 Average 38 | . 30 44 35 Influence Increases 1103 | . 85 425 593 Destroy 0b10 Robot/C 820 | . 60 340 420 Destroy 0b10 Robot/NC 30 | . . 10 20 Destroy Leader 182 | . 10 60 112 Successful Hack 10 | . . . 10 Disable Machine 30 | . . 15 15 Destroy Structure 1 | . . . 1 Lose Combat Pursuer 30 | . 15 . 15 Influence Decreases 1103 | . 50 367 686 Entered New Map 75 | . . 21 54 Time Decay 733 | . 50 286 397 Lost Part 295 | . . 60 235 Squads Dispatched 6 | . . 2 4 Investigation 1 | . . . 1 Extermination . | . . . . Reinforcement 5 | . . 2 3 Assault . | . . . . Garrison . | . . . . Intercept . | . . . . Searches Triggered . | . . . . Construction Impeded . | . . . . Haulers Reinforced . | . . . . Active Scanning Responses . | . . . . Cargo Convoy Interrupts . | . . . . Stealth | -11 -10 -9 -8 --------- Run | Yrd Mat Mat Mat Distress Signals 3 | . . 1 2 Communications Jammed . | . . . . Distress Signals . | . . . . Times Spotted 69 | . 4 24 41 Peak Tracking Total 6 | . 3 5 6 Tactical Retreats 4 | . 1 2 1 ECM-based Alert Blocks 4 | . . 4 . Traps | -11 -10 -9 -8 ------- Run | Yrd Mat Mat Mat Traps Triggered . | . . . . Indirectly . | . . . . Trap Hack Attempts . | . . . . Triggered . | . . . . Disarmed . | . . . . Reprogrammed . | . . . . Reused . | . . . . Traps Extracted . | . . . . Installed . | . . . . Triggered . | . . . . Machines | -11 -10 -9 -8 ---------- Run | Yrd Mat Mat Mat Machines Disabled 2 | . . 1 1 Max in Single Turn 1 | . . 1 1 Machines Repaired . | . . . . Machines Dismantled . | . . . . Machines Sabotaged . | . . . . Overloaded Fab Kills . | . . . . Hacking | -11 -10 -9 -8 --------- Run | Yrd Mat Mat Mat Machines Accessed 6 | . . 1 5 Terminals 4 | . . 1 3 Fabricators . | . . . . Repair Stations 1 | . . . 1 Recycling Units . | . . . . Scanalyzers 1 | . . . 1 Garrison Access . | . . . . Total Hacks 13 | . . 2 11 Successful 9 | . . . 9 Failed 4 | . . 2 2 Catastrophic 1 | . . 1 . Database Lockouts . | . . . . Manual 6 | . . 1 5 Terminals 7 | . . 2 5 Fabricators . | . . . . Repair Stations 3 | . . . 3 Recycling Units . | . . . . Scanalyzers 3 | . . . 3 Garrison Access . | . . . . Terminal Hacks . | . . . . Fabricator Hacks . | . . . . Repair Station Hacks 2 | . . . 2 Scan Component 1 | . . . 1 Refit 1 | . . . 1 Recycling Unit Hacks . | . . . . Scanalyzer 3 | . . . 3 Retrieve Study 3 | . . . 3 Garrison Access Hacks . | . . . . Unauthorized Hacks 4 | . . . 4 Terminals 4 | . . . 4 Assimilate 1 | . . . 1 Botnet 3 | . . . 3 Fabricators . | . . . . Repair Stations . | . . . . Recycling Units . | . . . . Scanalyzers . | . . . . Garrison Access . | . . . . Data Cores Recovered . | . . . . Used . | . . . . Hacking Detections 4 | . . 1 3 Full Trace Events 2 | . . . 2 Feedback Events . | . . . . Feedback Blocked . | . . . . Robot Schematics Acquired . | . . . . Robots Built . | . . . . Authchips . | . . . . Time . | . . . . Total Robot Build Rating . | . . . . Part Schematics Acquired . | . . . . Parts Built . | . . . . Authchips . | . . . . Time . | . . . . Total Part Build Rating . | . . . . Part Studies Acquired 3 | . . . 3 Parts Repaired . | . . . . Time . | . . . . Parts Recycled . | . . . . Recycled Matter . | . . . . Retrieved Matter . | . . . . Retrieved Components . | . . . . Parts Scanalyzed . | . . . . Part Schematics Acquired . | . . . . Parts Damaged . | . . . . Bothacking | -11 -10 -9 -8 ------------ Run | Yrd Mat Mat Mat Used RIF Installer . | . . . . Robots Hacked 2 | . . . 2 Non-combat 1 | . . . 1 Combat 1 | . . . 1 Robot Hacks Applied 2 | . . . 2 parse_system 1 | . . . 1 no_distress 1 | . . . 1 Relay Couplers Released . | . . . . Fabnet Peak Effective % . | . . . . Robots Rewired . | . . . . Allies Hacked . | . . . . Hacks Repelled . | . . . . Allies | -11 -10 -9 -8 -------- Run | Yrd Mat Mat Mat Total Allies . | . . . . Largest Group . | . . . . Highest-Rated Group . | . . . . Highest-Rated Ally . | . . . . Total Orders . | . . . . Ally Attacks . | . . . . Total Damage . | . . . . Kills . | . . . . Allies Corrupted . | . . . . Allies Melted . | . . . . Intel | -11 -10 -9 -8 ------- Run | Yrd Mat Mat Mat Active Infowar (turns) 239 | . 25 214 . ECM 239 | . 25 214 . Robot Analysis Total . | . . . . Derelict Logs Recovered . | . . . . Drone Launches . | . . . . Drone Recoveries . | . . . . Exploration | -11 -10 -9 -8 ------------- Run | Yrd Mat Mat Mat Turns Passed 2764 | 4 175 882 1703 Spaces Moved 982 | 4 113 283 582 Core 12 | . . 1 11 Treads . | . . . . Legs 970 | 4 113 282 571 Wheels . | . . . . Hover . | . . . . Flight . | . . . . Fastest Speed 120 | 120 120 190 175 Average Speed 194 | 120 124 210 201 Slowest Speed 950 | 120 190 850 950 Overloaded Moves . | . . . . Propulsion Burnouts . | . . . . Robots Hopped . | . . . . Potential Cave-ins . | . . . . Cave-ins Triggered . | . . . . Exploration Rate (%) 24 | 2 26 25 44 Regions Visited 3 Branch Regions . Pre-discovered Areas . | . . . . Known Exits Taken . | . . . . Unknown Exits Taken 3 | 1 1 1 . Scrap Searched . | . . . . Spaces Dug . | . . . . Terrain Destroyed . | . . . . Melee . | . . . . Projectile . | . . . . AOE . | . . . . Terrain Rammed . | . . . . Walls Destroyed . | . . . . Machines Disabled . | . . . . Actions | -11 -10 -9 -8 --------- Run | Yrd Mat Mat Mat Total 1538 | 3 130 459 946 Wait 218 | . 3 35 180 Move 979 | 3 112 282 582 Hop . | . . . . Pick Up 52 | . 2 30 20 Fast Attach 3 | . 1 . 2 Attach 31 | . . 11 20 Detach . | . . . . Swap 12 | . 1 5 6 Drop 22 | . 1 9 12 Fire 214 | . 10 87 117 Melee 3 | . . . 3 Ram . | . . . . Kick 4 | . . . 4 Crush . | . . . . Escape Stasis . | . . . . Rewire . | . . . . Trap . | . . . . Miscellaneous . | . . . . Route ------- -11/Scrapyard -10/Materials (discovered 2 exits: *Mat / [*Min]) -9/Materials -8/Materials History --------- Turn | Location | Event 1 | -11/Scrapyard | Discovered new exit (range 3) 5 | -11/Scrapyard | Entered Materials 127 | -10/Materials | Discovered new exit (range 12) 160 | -10/Materials | Discovered new exit (range 3) 180 | -10/Materials | Entered another Materials area 180 | -9/Materials | Evolved 2 slots: Propulsion x2 324 | -9/Materials | Build established: Mutant 367 | -9/Materials | Lost 6 parts (2p2n2w) 822 | -9/Materials | Build established: Scavenger-Mutant 883 | -9/Materials | Core integrity fell below 50% 1056 | -9/Materials | Discovered new exit (range 3) 1062 | -9/Materials | Entered another Materials area 1062 | -8/Materials | Evolved 2 slots: Power x1, Utility x1 1391 | -8/Materials | Lost 3 parts (2n1w) 1625 | -8/Materials | Build established: Mutant 2256 | -8/Materials | Core integrity fell below 50% 2308 | -8/Materials | Lost 9 parts (2p3n4w) 2682 | -8/Materials | Build established: Scavenger-Mutant 2754 | -8/Materials | Core integrity fell below 20% 2765 | -8/Materials | Destroyed by H-61 Shepherd with Heavy Assault Cannon Last Messages --------------- Prc. Beam Rifle destroyed. Aluminum Leg+ destroyed. Critical hit (Blast). K-01 Serf collects debris. R-06 Scavenger collects Katana. K-01 Serf collects debris. Deuterium Engine destroyed. Knocked back. Jacked G-50 Soldier... >>parse_system Reading system data... Aluminum Leg+ destroyed. Critical hit (Burn: +37). K-01 Serf collects debris. U-05 Engineer builds a Wall. Carbon-fiber Leg destroyed. Aluminum Leg+ destroyed. Lgt. Nuclear Core destroyed. Knocked back. Imp. Datajack destroyed. Map ----- +----------------------------------------------------+ | ?????????????????????????????????????????????????? | | ?????????????????????????????????????????????????? | | ?????????????????????????????????????????????????? | | ?????????????????????????????????????????????????? | | ?????????????????????????????????????????????????? | | ?????????????????????????????????????????????????? | | ?????????????????????????????????????????????????? | | ????????????????????????????????????????????????? | | ????????????????????????????????????????????????? | | ?????????????????????? ?????????????????????????? | | ?????????????????????# ?????????????????????????? | | ?????????????????????# ?????????????????????????# | | ?????????????????????# ?????????????????????????# | | ?????????????????????# ?????????????????????????# | | ?????????????????????# ?????????????????????????# | | ?????????????????????# ?????????????????????????# | | ?????????????????????# #?????????????????######?# | | ???????????! ????????# #?????????????????? ### | | ???????????? ###### ##?????????????????? ?# | | ???????????????? ##############+###### ### | | ???????????????????## %%% | | ????????????????????# % % | | ????????????????????#=%g | | ????????????????????# Hg##g######### ######/###### | | ????????????????????# %; #?# # #?# | | ????????????????????# %#@""""" #?# # #?# | | ????????????????????# # """"" #?# # #?# | | ????????????????????#= t%""""" =#?# + #?# | | ????????????????????#// # """"" #?############### | | ????????????????????#%!!# """"" #?????????# | | ????????????????????#!/*# """"" #?????????# | | ????????############# %# """"" #?????????# | | ????????# # # #?????????# | | ????????# # ##########?????????# | | ????????#! # %#????????#######???# | | ##??????# !! # #????????# #???# | | #??????# ! # #????????# #???# | | #??????# ! # ####?????#* T #???####### | | #??????# %= # !##????# #?????????? | | +##############+##### !#????# [ #?????????? | | !## # !#????## ##?????????? | | # # !#?????# % #??????????? | | " ## """ # """ !#?????# #??????????? | | "!## """"" + "Y" !##?????# ##########?? | | ####! """"" # %####??????# # #?? | | #### """"" # #?????????# # """ #?? | | + """ # %########### # """ [ #?? | | #### # % # """ #?? | | #??########### % # #?? | | #????????????# # """ #?? | +----------------------------------------------------+ Best States ------------- Heat Dissipation 31 Energy Generation 25 Energy Capacity 415 Matter Stores 300 Matter Capacity 300 Sight Range 16 Terrain Scan Density 185 ECM Strength 1 Armor Coverage 80 Evasion (%) 55 Item Schematics ----------------- None Robot Schematics ------------------ None Fabricated ------------ Nothing Repaired ---------- Nothing Studied --------- Aluminum Leg | -8/Materials | Hacked Imp. Aluminum Leg | -8/Materials | Hacked Nuclear Core | -8/Materials | Hacked Alien Tech Used ----------------- None Achievements -------------- None Challenges ------------ None Game ------ Seed MyomerCompositeSpecial Manual? 0 Play Time 00:19:03 Cumulative 25.7 hours Start 2025.11.02 @ 19:43:42 End 2025.11.02 @ 20:01:55 Sessions 1 Manual Loads 0 Difficulty Rogue Special Mode None Game No. 85 Rogue 85 Adventurer 0 Explorer 0 Win Type - Total 0 Types 0/0/0/0/0/0/0/0/0/0 Lore% 10 Gallery% 22 Achievement% 18 Wizard Run 0 Options --------- Layout 1 ASCII 0 Keyboard 0 Movement Mouse Keybinds 0 Fullscreen 1 Font 32/SmallcapsGlow Map View 50x35 Zoom Use 0% Tactical HUD 0 Map Filters NONE Filters NONE Steam 1 RUN: 722f5cc7-a8db-48e2-95e3-c2d674b5e4ba